bitfinex/quotes_ETHUSD_20240927
["timestamp","ask_amount","ask_price","bid_price","bid_amount"]
[1727427319271,0.7532,2671.3,2670.5,3.74455]
[1727427319467,0.7844,2671.0,2670.5,3.74455]
[1727427319669,4.52837,2671.0,2670.4,3.74469]
[1727427321264,3.7442,2670.8,2670.2,7.49653]
[1727427321466,3.7442,2670.8,2670.3,3.0]
[1727427321705,0.7526,2670.7,2670.3,3.0]
[1727427323614,0.7526,2670.7,2670.3,3.74488]
[1727427324510,0.7526,2670.7,2670.3,4.831429]
[1727427327315,0.7526,2670.7,2670.3,3.74488]
[1727427330583,0.7526,2670.7,2670.1,3.74507]
[1727427330917,4.49694,2670.7,2670.1,3.74507]
[1727427331119,0.8315,2670.4,2669.9,11.08541]
[1727427331278,0.457621,2670.3,2669.7,3.74571]
[1727427331477,4.57627,2670.4,2669.8,3.74558]
[1727427332421,0.8315,2670.4,2669.9,3.74545]
[1727427332893,0.8315,2670.4,2669.7,3.74571]
[1727427332894,4.57626,2670.4,2669.8,6.74558]
[1727427333627,0.8144,2670.3,2669.5,4.55106]
[1727427333920,3.74517,2670.2,2669.6,3.74577]
[1727427334083,3.74517,2670.2,2669.6,3.74587]
[1727427334282,0.8144,2670.1,2669.6,3.74587]
[1727427334476,0.8144,2670.1,2669.5,4.55106]
[1727427334720,0.8144,2670.1,2669.6,3.74578]
[1727427334879,0.8144,2670.1,2669.7,3.74563]
[1727427339005,0.8144,2670.1,2669.5,3.7459]
[1727427339200,0.8144,2670.1,2669.6,3.74587]
[1727427343212,0.8144,2670.1,2669.5,3.7459]
[1727427343534,4.55958,2670.1,2669.5,3.7459]
[1727427344329,5.390044,2670.1,2669.5,3.7459]
[1727427344495,3.74533,2670.0,2669.3,4.57216]
[1727427344697,0.7859,2669.9,2669.3,3.74626]
[1727427344995,0.7859,2669.9,2669.3,4.877488]
[1727427345198,0.7859,2669.9,2669.4,3.74616]
[1727427346133,0.7859,2669.9,2669.5,3.746]
[1727427347537,4.53136,2669.9,2669.3,4.877488]
[1727427348100,4.53136,2669.9,2669.3,8.623688]
[1727427348500,4.53136,2669.9,2669.3,4.877488]
[1727427348741,4.53136,2669.9,2669.4,3.74614]
[1727427350139,0.7859,2669.9,2669.4,3.74614]
[1727427353512,0.7859,2669.9,2669.5,3.74601]
[1727427354351,0.7859,2669.9,2669.5,7.49192]
[1727427354556,0.7797,2670.2,2669.7,3.74563]
[1727427354712,0.7797,2670.2,2669.6,0.07491381]
[1727427354713,0.391787,2670.4,2670.1,3.74517]
[1727427355213,0.7797,2670.5,2670.1,3.74517]
[1727427358850,4.5661,2670.7,2670.1,3.74517]
[1727427359434,0.8217,2670.7,2670.2,3.74502]
[1727427360244,0.8217,2670.7,2670.1,3.74517]
[1727427360445,0.8217,2670.7,2670.1,4.573217]
[1727427360721,0.8217,2670.7,2670.1,4.64810803]
[1727427361265,0.8217,2670.7,2670.1,4.573127]
[1727427361426,0.8217,2670.7,2670.2,3.74503]
[1727427369270,0.8217,2670.7,2670.3,3.74489]
[1727427369432,0.8217,2670.7,2670.4,0.748992]
[1727427369628,0.8217,2670.7,2670.3,3.74489]
[1727427370269,0.8217,2670.7,2670.2,3.74502]
[1727427375507,3.74447,2670.6,2670.0,4.53515]
[1727427375788,7.48906,2670.6,2670.0,4.53515]
[1727427375997,0.8067,2670.4,2670.0,3.74525]
[1727427376152,4.5515,2670.4,2669.8,14.88595]
[1727427376352,4.5515,2670.4,2669.9,1.526145]
[1727427376553,4.5515,2670.4,2670.0,3.0]
[1727427376789,4.5515,2670.4,2669.8,11.08555]
[1727427377790,4.5515,2670.4,2669.8,11.0855]
[1727427378084,0.8067,2670.4,2669.9,3.74536]
[1727427378284,0.8067,2670.4,2669.8,11.0855]
[1727427378493,0.8067,2670.4,2669.9,3.74545]
[1727427378693,4.5515,2670.4,2669.8,7.34]
[1727427378854,3.74493,2670.3,2669.8,7.34]
[1727427379057,4.5515,2670.4,2669.8,7.34]
[1727427380257,5.381103,2670.4,2669.8,11.08553]
[1727427381155,5.381103,2670.4,2669.9,3.74544]
[1727427381357,0.8067,2670.4,2669.9,3.74544]
[1727427381576,0.8067,2670.4,2669.9,3.74533]
[1727427381778,0.7711,2670.7,2670.4,3.74472]
[1727427381988,0.7711,2670.7,2670.5,0.374472]
[1727427382264,0.7711,2670.7,2670.4,3.74472]
[1727427384298,11.04369,2671.2,2670.5,3.7445]
[1727427384462,0.7984,2671.1,2670.5,3.7445]
[1727427385088,0.7984,2671.1,2670.6,3.74444]
[1727427385307,0.7984,2671.1,2670.6,4.575726]
[1727427386169,4.5422,2671.1,2670.6,0.831286]
[1727427386372,0.7984,2671.1,2670.6,0.831286]
[1727427388790,4.49995,2670.9,2670.2,3.74493]
[1727427389606,0.7558,2670.9,2670.3,3.74485]
[1727427389968,0.7558,2670.9,2670.4,3.74473]
[1727427390280,0.7558,2670.9,2670.4,4.493696]
[1727427391369,0.7558,2670.9,2670.4,3.74473]
[1727427392097,4.49995,2670.9,2670.2,7.48986]
[1727427392302,0.7558,2670.9,2670.2,3.74493]
[1727427392485,0.8313,2670.7,2670.2,3.74493]
[1727427395073,0.8313,2670.7,2670.2,4.76411696]
[1727427395371,0.8313,2670.7,2670.2,8.50906696]
[1727427395567,0.8313,2670.7,2670.2,4.76411696]
[1727427397299,0.8313,2670.7,2670.2,3.74493]
[1727427398389,0.8313,2670.7,2670.0,3.74522]
[1727427398711,3.74448,2670.6,2670.0,7.49044]
[1727427398898,0.8017,2670.5,2670.0,3.74522]
[1727427399085,0.8017,2670.5,2670.2,3.74497]
[1727427408240,0.8017,2670.5,2670.0,7.49044]
[1727427408528,0.8017,2670.5,2670.0,3.74522]
[1727427409427,0.8017,2670.5,2670.1,3.74513]
[1727427409791,0.8017,2670.5,2669.6,4.93895]
[1727427410024,0.7572,2670.3,2669.8,3.74557]
[1727427412539,0.7572,2670.3,2669.8,7.49107]
[1727427412704,0.7572,2670.3,2669.8,3.7455]
[1727427414929,0.7766,2670.2,2669.8,3.74559]
[1727427415239,0.7766,2670.2,2669.8,7.4911]
[1727427415406,0.7766,2670.2,2669.8,3.74551]
[1727427416508,0.7766,2670.2,2669.9,3.74542]
[1727427418201,0.7766,2670.2,2669.8,3.74551]
[1727427418918,0.7766,2670.2,2669.8,7.49101]
[1727427419119,0.7766,2670.2,2669.8,7.491]
[1727427419848,0.7766,2670.2,2669.8,3.7455]
[1727427420013,0.7766,2670.2,2669.9,3.74543]
[1727427425664,0.7766,2670.2,2669.8,3.7455]
[1727427426450,0.7766,2670.2,2669.8,3.74548]
[1727427426651,0.7707,2670.7,2669.9,0.84840628]
[1727427426825,0.7707,2670.7,2670.3,3.74488]
[1727427427369,0.7707,2670.7,2670.1,3.74505]
[1727427427564,0.7707,2670.7,2670.1,7.49014]
[1727427427771,0.7707,2670.7,2670.1,3.74505]
[1727427427940,0.7707,2670.7,2670.2,3.74502]
[1727427428270,0.7707,2670.7,2670.1,3.74505]
[1727427429467,3.74451,2670.6,2669.9,3.74538]
[1727427429669,4.57033,2670.5,2669.9,3.74538]
[1727427429854,0.8257,2670.5,2669.9,7.49074]
[1727427430057,0.7977,2670.4,2669.9,3.74536]
[1727427430774,0.7977,2670.3,2669.9,3.74536]
[1727427433974,0.7977,2670.3,2669.7,6.74562]
[1727427434517,0.7977,2670.3,2669.8,3.7455]
[1727427434803,0.7977,2670.3,2669.7,6.74562]
[1727427434804,0.7977,2670.3,2669.9,3.74542]
[1727427435919,0.7977,2670.3,2669.8,3.74558]
[1727427436415,0.7977,2670.3,2669.9,3.74542]
[1727427437005,0.7977,2670.3,2669.7,6.74562]
[1727427437922,0.7977,2670.3,2669.8,3.7455]
[1727427438478,0.7977,2670.3,2669.9,3.74543]
[1727427440213,0.7977,2670.3,2669.7,10.49127]
[1727427440524,0.7977,2670.3,2669.9,3.74545]
[1727427443302,0.7977,2670.3,2669.7,6.74562]
[1727427443920,0.7993,2670.2,2669.7,6.74562]
[1727427444123,0.7993,2670.2,2669.7,10.49125]
[1727427444635,0.7993,2670.2,2669.8,3.74556]
[1727427445014,0.7993,2670.2,2669.7,3.74562]
[1727427445231,0.7993,2670.2,2669.9,3.74545]
[1727427445630,0.7993,2670.2,2669.7,7.49126]
[1727427446619,0.7993,2670.2,2669.8,3.74553]
[1727427448839,0.7993,2670.2,2669.5,4.52164]
[1727427449244,4.57372486,2670.2,2669.7,3.7457]
[1727427449572,0.824,2670.1,2669.7,3.7457]
[1727427450089,0.7899,2669.9,2669.3,3.74624]
[1727427450249,0.7899,2669.9,2669.2,3.0]
[1727427450458,0.7899,2669.7,2669.2,6.7464]
[1727427451254,0.7899,2669.7,2669.3,3.7462]
[1727427453068,0.7899,2669.7,2669.2,6.7464]
[1727427453438,0.7899,2669.7,2669.3,3.74628]
[1727427453647,0.7899,2669.7,2669.2,6.7464]
[1727427454698,3.74574,2669.7,2669.2,6.7464]
[1727427454994,0.7525,2669.6,2669.2,6.7464]
[1727427455357,0.7525,2669.6,2669.2,6.74634]
[1727427455588,0.7525,2669.6,2669.2,7.59456296]
[1727427455804,0.7525,2669.6,2669.3,3.74627]
[1727427458697,0.7525,2669.6,2669.2,7.59456296]
[1727427458987,0.7525,2669.6,2669.2,6.74634]
[1727427459189,0.7525,2669.6,2669.2,10.49267]
[1727427460279,0.7525,2669.6,2669.3,3.74626]
[1727427461698,0.7525,2669.6,2669.2,10.49267]
[1727427463914,0.7525,2669.6,2669.2,6.74633]
[1727427464076,0.7525,2669.6,2669.3,3.74627]
[1727427467117,0.7525,2669.6,2669.2,10.49266]
[1727427467295,0.7525,2669.6,2669.2,6.74633]
[1727427468327,0.7525,2669.6,2669.2,10.49266]
[1727427468886,0.7525,2669.6,2669.2,6.74633]
[1727427469087,0.7525,2669.6,2669.3,3.74628]
[1727427476844,0.7525,2669.6,2669.2,7.59455196]
[1727427477267,0.7525,2669.6,2669.2,6.74633]
[1727427477650,0.7525,2669.6,2669.2,10.49268]
[1727427478088,0.7525,2669.6,2669.3,3.74621]
[1727427478243,0.7525,2669.6,2669.4,3.74605]
[1727427478760,0.7971,2670.0,2669.6,3.74585]
[1727427480075,0.7971,2670.0,2669.2,0.8009]
[1727427480249,0.7971,2670.0,2669.3,3.74616]
[1727427480250,4.54255,2670.0,2669.3,3.74616]
[1727427480451,0.7971,2670.0,2669.7,3.74572]
[1727427480804,0.7971,2670.0,2669.8,3.7455]
[1727427481084,7.69191357,2670.3,2670.0,3.74522]
[1727427481295,0.8058,2670.4,2670.1,3.74505]
[1727427481580,7.3,2670.9,2670.3,3.74484]
[1727427481581,0.7995,2670.6,2670.3,3.74484]
[1727427481935,7.3,2670.9,2670.3,3.74484]
[1727427481936,0.8035,2670.8,2670.3,3.74484]
[1727427483356,4.54773,2670.8,2670.1,3.74505]
[1727427485025,4.54773,2670.8,2670.2,3.74502]
[1727427486406,4.54773,2670.8,2670.1,3.74505]
[1727427490642,4.54773,2670.8,2670.1,7.49012]
[1727427491404,4.54773,2670.8,2670.2,3.745]
[1727427491708,0.8035,2670.8,2670.4,0.7965]
[1727427492124,0.8035,2670.8,2670.3,3.74477]
[1727427494947,4.5477,2670.8,2670.3,3.74477]
[1727427495308,0.8035,2670.8,2670.5,3.74452]
[1727427496013,0.7964,2671.1,2670.7,3.74432]
[1727427497213,0.7964,2671.4,2671.0,3.74382]
[1727427497510,0.7964,2671.4,2671.0,4.921802]
[1727427498055,0.7964,2671.4,2671.0,1.177982]
[1727427498652,0.7964,2671.4,2671.0,4.921802]
[1727427499955,0.7964,2671.4,2671.0,4.99667042]
[1727427500160,0.7964,2671.4,2671.0,4.921802]
[1727427501212,0.7964,2671.4,2671.0,4.118202]
[1727427501608,0.7964,2671.4,2671.0,0.374382]
[1727427502246,0.7964,2671.4,2671.0,4.118262]
[1727427502555,0.7964,2671.4,2671.1,0.7862182]
[1727427504916,0.8201,2671.6,2671.3,3.74347]
[1727427505429,0.8201,2671.6,2671.3,7.48694]
[1727427505654,0.8201,2671.6,2671.4,0.83395021]
[1727427505856,3.74266,2671.9,2671.4,4.57730021]
[1727427505857,0.8107,2671.8,2671.4,4.57730021]
[1727427506020,0.8107,2671.8,2671.4,3.74335]
[1727427506367,0.8107,2671.8,2671.3,3.74347]
[1727427506546,4.55351,2671.8,2671.3,3.74347]
[1727427507261,0.8107,2671.8,2671.3,3.74347]
[1727427509325,4.56413,2671.7,2671.1,3.74374]
[1727427510022,0.8211,2671.7,2671.1,3.74374]
[1727427510225,0.8211,2671.7,2671.2,3.74359]
[1727427510432,0.8211,2671.7,2671.1,3.74374]
[1727427510627,0.8211,2671.7,2671.2,3.7436]
[1727427510836,0.8211,2671.7,2671.2,4.4998206]
[1727427512765,0.8211,2671.7,2671.3,3.74347]
[1727427518446,0.8211,2671.7,2671.3,3.81826056]
[1727427518651,0.8211,2671.7,2671.3,3.7434]
[1727427525887,0.8211,2671.7,2671.3,3.74339]
[1727427534352,0.7768,2671.6,2670.8,8.1551]
[1727427534557,0.7768,2671.5,2671.0,3.74382]
[1727427534855,0.7768,2671.5,2671.1,3.0]
[1727427538108,0.7768,2671.5,2671.1,6.74375]
[1727427538305,0.7768,2671.5,2671.1,7.792506]
[1727427539471,0.7768,2671.5,2671.1,4.048756]
[1727427539663,0.7768,2671.5,2671.1,7.792506]
[1727427540304,0.7768,2671.5,2671.1,4.048756]
[1727427541008,0.7768,2671.5,2671.1,7.792436]
[1727427541810,0.7768,2671.5,2671.2,1.1536236]
[1727427542223,0.7768,2671.5,2671.1,3.0]
[1727427545123,0.7768,2671.5,2671.1,6.74374]
[1727427545625,0.7813,2671.4,2670.9,3.74396]
[1727427545778,0.7813,2671.4,2670.8,11.0841]
[1727427545974,4.52467,2671.4,2670.8,11.0841]
[1727427546481,4.52467,2671.4,2670.8,14.8282]
[1727427546717,4.52467,2671.4,2670.8,11.0841]
[1727427547131,4.52467,2671.4,2670.8,14.82817]
[1727427547287,4.52467,2671.4,2670.9,3.74404]
[1727427548938,0.7813,2671.4,2670.9,3.74404]
[1727427549102,0.7813,2671.4,2671.0,3.81876619]
[1727427549303,0.7813,2671.4,2671.2,3.7436]
[1727427549807,0.7813,2671.4,2671.0,3.81866619]
[1727427550009,0.7691,2671.7,2671.1,4.27382772]
[1727427550450,0.7691,2671.7,2671.1,5.17806071]
[1727427551312,0.7691,2671.7,2671.1,1.43431071]
[1727427551510,0.7691,2671.7,2671.1,1.35944772]
[1727427551712,0.7691,2671.7,2670.9,1.482811]
[1727427551931,0.7872,2671.4,2670.9,1.482811]
[1727427554038,4.53059,2671.4,2670.9,1.482811]
[1727427554350,0.7703,2671.3,2670.9,1.482811]
[1727427554845,0.7703,2671.3,2670.8,11.08416]
[1727427556560,0.7703,2671.3,2670.8,3.74416]
[1727427557556,0.7703,2671.3,2670.8,3.81902981]
[1727427557856,0.7703,2671.3,2670.8,3.81902989]
[1727427558164,0.7703,2671.3,2670.8,3.81902978]
[1727427558322,0.7703,2671.3,2670.9,0.38190298]
[1727427558518,0.7703,2671.3,2670.9,4.12594298]
[1727427558727,4.51381,2671.3,2670.9,0.38190298]
[1727427558939,0.7703,2671.3,2670.9,0.38190298]
[1727427564069,0.7703,2671.3,2670.9,0.45677265]
[1727427564358,0.7703,2671.3,2671.0,0.4126063]
[1727427571344,4.51388,2671.3,2671.0,0.4126063]
[1727427571540,4.51388,2671.3,2670.8,0.07486956]
[1727427571870,0.7703,2671.3,2670.8,3.81903956]
[1727427572270,4.51383,2671.3,2670.8,0.07486956]
[1727427572473,4.51383,2671.3,2670.9,0.75923696]
[1727427572829,0.7703,2671.3,2670.9,0.75923696]
[1727427573762,0.7703,2671.3,2670.9,0.83410628]
[1727427573975,0.7703,2671.3,2670.9,0.75923696]
[1727427574974,0.7703,2671.3,2671.0,0.07486931]
[1727427575130,0.7703,2671.3,2671.0,0.53269091]
[1727427575326,0.7703,2671.3,2671.0,0.53269097]
[1727427575862,0.7703,2671.3,2671.0,0.45782163]
[1727427576067,0.7703,2671.3,2671.0,0.5326909]
[1727427576276,0.7703,2671.3,2671.0,0.45782163]
[1727427576872,0.7703,2671.3,2671.0,0.53269092]
[1727427578266,3.74315,2671.6,2671.0,0.53269092]
[1727427578267,3.74328,2671.5,2671.0,0.53269092]
[1727427578499,4.53348,2671.5,2671.1,0.50358879]
[1727427578684,4.53348,2671.5,2671.2,0.07486487]
[1727427578889,0.7902,2671.5,2671.0,0.5326865]
[1727427579065,0.7902,2671.5,2671.0,4.2765965]
[1727427579270,0.7902,2671.5,2671.1,0.50358335]
[1727427579766,4.53347,2671.5,2671.1,0.50358335]
[1727427580896,4.53347,2671.5,2671.0,0.5326865]
[1727427583489,7.2901247,2671.7,2671.1,0.7967]
[1727427583698,3.74309,2671.6,2671.2,0.07485935]
[1727427583903,3.74309,2671.6,2671.2,0.46153694]
[1727427587288,3.74309,2671.6,2671.1,0.87156076]
[1727427589394,4.5359,2671.7,2671.1,0.87156076]
[1727427589575,4.5359,2671.7,2671.1,4.61523076]
[1727427589981,3.74308,2671.6,2671.1,4.61523076]
[1727427591919,0.7929,2671.7,2671.1,4.61523076]
[1727427592122,4.53584,2671.7,2671.2,0.46152308]
[1727427593127,4.53584,2671.7,2671.2,4.20514308]
[1727427593289,4.53584,2671.7,2671.2,4.28000103]
[1727427593617,4.53584,2671.7,2671.2,0.53638103]
[1727427594210,0.7929,2671.7,2671.2,0.53638103]
[1727427594532,0.7929,2671.7,2671.3,0.68126406]
[1727427594758,0.7929,2671.7,2671.4,0.07485737]
[1727427594893,0.39190116,2672.0,2671.6,0.55]
[1727427595225,0.7939,2672.2,2671.7,0.07484447]
[1727427596402,0.7939,2672.2,2671.8,0.43678045]
[1727427596823,0.7939,2672.2,2671.8,0.51162393]
[1727427598797,4.53616,2672.2,2671.8,0.51162393]
[1727427599420,0.7939,2672.2,2671.8,1.34122393]
[1727427599633,1.17874078,2672.4,2671.9,0.30771135]
[1727427599933,1.17874078,2672.4,2672.0,0.07483985]
[1727427600142,4.92082078,2672.4,2672.0,0.07483985]
[1727427600304,4.92082078,2672.4,2671.9,0.38255085]
[1727427601195,1.17874078,2672.4,2671.9,0.38255085]
[1727427601401,1.17874078,2672.4,2672.0,0.53916113]
[1727427601402,3.74209,2672.3,2672.0,0.53916113]
[1727427601701,3.74209,2672.3,2671.9,0.30771135]
[1727427603444,0.39184078,2672.4,2672.0,0.07484098]
[1727427603649,4.13379078,2672.4,2671.9,1.73588957]
[1727427603798,4.13379078,2672.4,2671.8,5.00907045]
[1727427603998,0.39184078,2672.4,2671.9,0.674496]
[1727427604198,3.74213,2672.3,2671.8,1.26638045]
[1727427604617,0.39184078,2672.4,2671.9,3.74264]
[1727427604798,0.39184078,2672.4,2671.8,5.00908045]
[1727427605005,0.39184078,2672.4,2671.9,6.33912782]
[1727427605241,0.39184078,2672.4,2672.0,1.13482083]
[1727427605803,0.39184078,2672.4,2672.0,1.209659]
[1727427606005,0.39184078,2672.4,2672.0,1.13482083]
[1727427606946,0.39184078,2672.4,2672.1,0.07483829]
[1727427607120,0.39184078,2672.4,2672.0,4.87731083]
[1727427607312,0.39184078,2672.4,2672.1,0.86631108]
[1727427607804,0.39184078,2672.4,2671.9,3.86063824]
[1727427608900,0.39184078,2672.4,2672.0,3.74247]
[1727427609439,0.39184078,2672.4,2672.2,1.73588957]
[1727427609743,0.39184078,2672.4,2672.3,5.10249]
[1727427609942,0.39184078,2672.4,2672.3,8.11489]
[1727427610157,0.39184078,2672.4,2672.3,9.48166116]
[1727427612736,0.7944,2673.2,2672.7,0.7694]
[1727427613037,0.7944,2673.2,2672.7,0.84422114]
[1727427613207,0.7686,2673.4,2672.7,0.84422114]
[1727427613407,0.7686,2672.9,2672.8,0.63217307]
[1727427613653,0.7686,2673.2,2672.6,4.29154]
[1727427613831,0.7686,2673.2,2672.7,3.81625627]
[1727427614007,0.8257,2673.3,2672.7,0.07481627]
[1727427614213,0.8257,2673.2,2672.5,3.55]
[1727427614519,3.74108,2673.1,2672.5,3.62482202]
[1727427614724,0.8009,2672.9,2672.3,1.36677116]
[1727427614941,0.8009,2672.9,2672.3,3.55]
[1727427614942,4.54226,2672.9,2672.3,3.55]
[1727427615918,4.54226,2672.9,2672.3,3.0]
[1727427616342,0.8009,2672.9,2672.3,6.74199]
[1727427616511,4.54222,2672.9,2672.3,3.0]
[1727427616850,0.8088,2672.8,2672.3,4.522303]
[1727427617843,0.8088,2672.8,2672.2,3.74223]
[1727427618039,3.74233,2672.2,2671.8,7.34]
[1727427618235,0.7933,2672.1,2671.5,3.74316]
[1727427619246,0.7933,2672.1,2671.6,3.74307]
[1727427621327,0.7933,2672.1,2671.7,3.74284]
[1727427624475,0.7933,2672.1,2671.8,3.74277]
[1727427625331,0.7933,2672.1,2671.6,3.74302]
[1727427625538,3.74212,2672.3,2671.3,7.34]
[1727427625776,0.7777,2671.8,2671.3,7.34]
[1727427626076,1.229744,2671.8,2671.3,7.34]
[1727427626245,0.7777,2671.8,2671.3,11.08344]
[1727427626562,0.7777,2671.8,2671.4,3.74333]
[1727427626754,0.7777,2671.8,2671.3,7.34]
[1727427626973,0.7777,2671.8,2671.3,7.9301962]
[1727427627556,0.7777,2671.8,2671.3,11.6736762]
[1727427627876,0.7777,2671.8,2671.3,7.9301962]
[1727427628059,0.7777,2671.8,2671.3,11.6735762]
[1727427629451,0.7777,2671.8,2671.4,3.74333]
[1727427630347,11.04154,2672.7,2671.3,7.34]
[1727427630348,4.55733,2671.7,2671.3,7.34]
[1727427630669,3.7431,2671.6,2671.0,3.74387]
[1727427630870,0.8143,2671.5,2671.0,3.74387]
[1727427632249,0.8151,2671.4,2670.8,3.74408]
[1727427632438,3.74382,2671.1,2670.2,3.74501]
[1727427632636,0.8313,2670.8,2670.2,3.74501]
[1727427633243,0.8313,2670.8,2670.2,3.74494]
[1727427633542,0.8313,2670.8,2670.3,3.74486]
[1727427637482,0.7711,2670.6,2669.9,6.74539]
[1727427637650,4.54648,2670.4,2669.7,11.08568]
[1727427637856,0.8017,2670.4,2669.9,3.74535]
[1727427638457,0.8017,2670.4,2670.0,3.74531]
[1727427638870,0.8017,2670.4,2669.9,3.74535]
[1727427639673,0.8017,2670.4,2669.9,3.74538]
[1727427639881,0.8017,2670.4,2670.0,3.7453]
[1727427640266,0.8017,2670.4,2670.1,3.74514]
[1727427643445,0.8017,2670.4,2669.9,7.49077]
[1727427643644,0.8017,2670.4,2669.9,8.371267]
[1727427644278,0.8017,2670.4,2669.9,4.625857]
[1727427644884,0.8017,2670.4,2669.9,4.625837]
[1727427645185,0.8017,2670.4,2670.0,3.74522]
[1727427647088,0.8017,2670.4,2669.9,8.371207]
[1727427647880,0.8017,2670.4,2670.0,3.74531]
[1727427648959,0.8017,2670.4,2670.1,3.74515]
[1727427649170,0.8173,2670.8,2670.3,3.74483]
[1727427650290,0.8173,2670.8,2670.3,3.74479]
[1727427650491,0.8173,2670.8,2670.3,4.6204077]
[1727427650721,0.8196,2671.3,2670.6,0.55]
[1727427650918,0.8196,2671.3,2670.9,3.74402]
[1727427651371,0.8196,2671.3,2670.7,3.74428]
[1727427651573,0.8196,2671.3,2670.7,4.911806]
[1727427652778,0.8196,2671.3,2670.9,3.74395]
[1727427656096,0.8196,2671.3,2670.7,4.911856]
[1727427656298,0.8196,2671.3,2670.7,3.74433]
[1727427658938,0.8196,2671.3,2670.9,3.74392]
[1727427659243,0.8196,2671.3,2671.0,3.74391]
[1727427662253,0.8196,2671.3,2670.9,3.74392]
[1727427662408,0.8196,2671.3,2671.0,3.7439]
[1727427662810,0.8196,2671.3,2671.1,3.74376]
[1727427663151,0.8196,2671.3,2671.0,0.803782]
[1727427663446,0.8196,2671.3,2671.0,4.547562]
[1727427664023,0.8196,2671.3,2671.0,0.803782]
[1727427664209,0.8196,2671.3,2670.9,3.74404]
[1727427665951,0.8196,2671.3,2671.0,3.7439]
[1727427666366,0.8196,2671.3,2671.1,3.74373]
[1727427666655,0.7962,2671.8,2671.2,3.74363]
[1727427666865,0.7962,2671.8,2671.2,7.48715]
[1727427667022,0.7962,2671.8,2671.2,3.74352]
[1727427667921,4.53925,2671.7,2671.0,3.74385]
[1727427668126,0.7962,2671.6,2671.1,3.74377]
[1727427668327,3.74316,2671.6,2671.0,3.74385]
[1727427668635,0.7962,2671.5,2670.8,4.66964]
[1727427668838,0.8047,2671.4,2670.9,3.74405]
[1727427669049,4.23616516,2671.7,2670.6,3.74436]
[1727427669050,3.74363,2671.2,2670.6,3.74436]
[1727427669252,0.8047,2671.1,2670.6,3.74436]
[1727427669436,0.8047,2671.0,2670.4,7.34]
[1727427669635,0.8047,2670.8,2670.4,7.34]
[1727427671467,3.74421,2670.8,2670.1,7.49017]
[1727427671626,3.74415,2670.9,2670.2,3.74498]
[1727427671627,0.7722,2670.7,2670.2,3.74498]
[1727427672136,0.7722,2670.7,2670.1,4.70368547]
[1727427672346,0.7722,2670.7,2670.3,3.74486]
[1727427672555,0.7722,2670.7,2670.3,3.74481]
[1727427672871,0.7722,2670.7,2670.4,3.7447]
[1727427673240,0.7722,2670.7,2670.4,0.75643981]
[1727427673568,0.7722,2670.7,2670.5,3.74451]
[1727427674457,0.7859,2671.2,2670.6,3.74442]
[1727427674774,0.7859,2671.2,2670.6,7.48879]
[1727427674944,0.7859,2671.2,2670.6,7.56366675]
[1727427675270,0.7859,2671.2,2670.7,4.50068668]
[1727427676539,0.7859,2671.2,2670.7,4.50065668]
[1727427678329,0.7859,2671.2,2670.7,0.75636668]
[1727427678533,0.7859,2671.2,2670.6,3.74437]
[1727427679068,0.7859,2671.2,2670.6,3.74436]
[1727427679274,0.8247,2671.0,2670.5,3.74455]
[1727427679434,0.8247,2671.0,2670.5,3.74451]
[1727427684545,0.8247,2671.0,2670.6,3.74447]
[1727427685691,0.8247,2671.0,2670.4,3.74465]
[1727427685895,0.8247,2671.0,2670.5,3.7446]
[1727427686747,0.8247,2671.0,2670.5,7.48911]
[1727427686951,0.8247,2671.0,2670.5,3.74451]
[1727427687591,0.8247,2671.0,2670.4,1.11597041]
[1727427687592,4.56871,2671.0,2670.4,1.11597041]
[1727427687780,4.56871,2671.0,2670.4,4.86064041]
[1727427690595,0.8247,2671.0,2670.4,4.86064041]
[1727427690976,0.8247,2671.0,2670.5,3.74452]
[1727427691335,0.8247,2671.0,2670.7,3.7443]
[1727427691535,0.8247,2671.0,2670.7,3.74427]
[1727427692195,0.8247,2671.0,2670.8,3.74417]
[1727427694895,0.39192414,2671.2,2671.1,3.74377]
[1727427695141,0.39192414,2671.2,2671.1,5.19913265]
[1727427695343,0.7553,2671.7,2671.1,5.19913265]
[1727427695344,0.7518,2672.1,2671.5,3.74307]
[1727427695635,4.49419,2672.1,2671.5,3.74307]
[1727427695801,0.7518,2672.1,2671.5,3.74307]
[1727427696000,0.7518,2672.1,2671.6,0.07485202]
[1727427696203,0.7518,2672.1,2671.5,3.81792203]
[1727427696893,0.7518,2672.1,2671.5,7.56103203]
[1727427697093,0.7518,2672.1,2671.5,3.81792203]
[1727427697714,0.7518,2672.1,2671.5,3.74307]
[1727427698305,0.7518,2672.1,2671.5,4.49920621]
[1727427699506,4.49424,2672.1,2671.5,4.49920621]
[1727427700838,4.49424,2672.1,2671.4,0.07485207]
[1727427700839,4.52956,2671.9,2671.3,3.74344]
[1727427701003,3.7428,2671.8,2671.2,3.0]
[1727427701398,3.7428,2671.8,2671.1,0.8305]
[1727427701399,0.7692,2671.7,2671.1,0.8305]
[1727427701709,3.74309,2671.6,2671.0,3.0]
[1727427701909,0.823,2671.5,2670.9,3.74404]
[1727427702243,0.823,2671.5,2670.7,3.74431]
[1727427702244,3.74335,2671.4,2670.7,3.74431]
[1727427702397,0.823,2671.5,2671.0,3.74382]
[1727427702592,0.823,2671.5,2670.9,3.74393]
[1727427702933,0.823,2671.5,2670.7,3.74429]
[1727427702934,5.397161,2671.5,2670.7,3.74429]
[1727427703138,3.74347,2671.4,2670.7,7.48851]
[1727427703347,5.397161,2671.5,2670.8,3.74418]
[1727427704435,9.140511,2671.5,2670.8,3.74418]